Workbook

Sheet 1нед
L2: "Утверждаю"
L3: Директор школы:
L4: __________/Вихлянский А.В./
A6: ПРИМЕРНОЕ ДВЕНАДЦАТИДНЕВНОЕ МЕНЮ ДЛЯ ОБУЧАЮЩИХСЯ В ОБЩЕОБРАЗОВАТЕЛЬНЫХ ОРГАНИЗАЦИЯХ С 1-4 КЛАССЫ
A7: МБОУ "Антоновская СОШ" Спасского муниципального района Республики Татарстан
A8: на 2022 - 2023 учебный год
M9: осенний сезон
B10: Наименование блюд | C10: Выход | D10: Белки, г | E10: Жиры, г | F10: Углеводы, г | G10: Калорийность, ккал | H10: Витамин B1, мг | I10: Витамин С, мг | J10: Витамин А, мг | K10: Витамин Е, мг | L10: Ca, мг | M10: P, мг | N10: Mg, мг | O10: Fe, мг
B11: 1-ая неделя ПОНЕДЕЛЬНИК
B12: фрукты | C12: 120 | D12: 0.480 | E12: 0.480 | F12: 8.820 | G12: 56 | H12: 0.036 | I12: 12.000 | K12: 0.240 | L12: 19.200 | M12: 13.200 | N12: 10.800 | O12: 2.640
A13: №62 | B13: САЛАТ ИЗ БЕЛОКОЧАННОЙ КАПУСТЫ | C13: 60 | D13: 0.931 | E13: 3.051 | F13: 5.645 | G13: 54 | H13: 0.018 | I13: 21.603 | K13: 1.391 | L13: 25.537 | M13: 18.260 | N13: 9.920 | O13: 0.344
A14: №266 | B14: котлеты | C14: 80 | D14: 8.800 | E14: 7.700 | F14: 8.836 | G14: 168 | H14: 0.053 | I14: 1.200 | K14: 1.254 | L14: 14.252 | M14: 109.083 | N14: 14.642 | O14: 1.606
A15: №303 | B15: КАША рассыпчатаяГРЕЧНЕВАЯ (с маслом) | C15: 150/5 | D15: 6.662 | E15: 9.024 | F15: 33.000 | G15: 170 | H15: 0.292 | J15: 41.000 | K15: 0.518 | L15: 27.352 | M15: 180.553 | N15: 104.550 | O15: 3.501
A16: №378 | B16: ЧАЙ с сахаром с лимоном | C16: 200/15/7 | D16: 0.084 | E16: 0.012 | F16: 9.870 | G16: 62 | H16: 0.003 | K16: 0.014 | L16: 3.250 | M16: 1.540 | N16: 0.840 | O16: 0.087
B17: ХЛЕБ БЕЛЫЙ 1 сорт | C17: 30 | D17: 2.280 | E17: 0.240 | F17: 14.760 | G17: 71 | H17: 0.033 | K17: 0.330 | L17: 6.000 | M17: 19.500 | N17: 4.200 | O17: 0.330
B18: ХЛЕБ РЖАНО-ПШЕНИЧНЫЙ | C18: 20 | D18: 1.000 | E18: 0.200 | F18: 9.000 | G18: 44 | H18: 0.014 | K18: 0.108 | L18: 2.760 | M18: 12.720 | N18: 3.000 | O18: 0.372
B19: Итого: | D19: =SUM(D12:D18) -> 20.237 | E19: 20.707 | F19: =SUM(F12:F18) -> 89.931 | G19: 625.000 | H19: 0.449 | I19: 34.803 | J19: 41.000 | K19: 3.855 | L19: 98.351 | M19: 354.856 | N19: 147.952 | O19: 8.880
B20: 1-ая неделя ВТОРНИК
A21: 338/2015, ДеЛи | B21: ФРУКТЫ | C21: 100 | D21: 0.400 | E21: 0.400 | F21: 7.350 | G21: 47 | H21: 0.030 | I21: 10.000 | K21: 0.200 | L21: 16.000 | M21: 11.000 | N21: 9.000 | O21: 2.200
A22: 43/2004Сбшк | B22: овощи натуральные свежие | C22: 80 | D22: 1.300 | E22: 0.080 | F22: 1.520 | G22: 7 | H22: 0.018 | I22: 4.200 | K22: 0.060 | L22: 10.200 | M22: 18.000 | N22: 8.400 | O22: 0.300
B23: жаркое из куриных грудок | C23: 50/150 | D23: 12 | E23: 16.120 | F23: 29.800 | G23: 295 | H23: 0.222 | I23: 27.825 | J23: 28.500 | K23: 2.174 | L23: 35.535 | M23: 197.840 | N23: 47.778 | O23: 2.260
A24: 693/2004, Сб.шк | B24: КАКАО С МОЛОКОМ | C24: 200 | D24: 3.972 | E24: 2.100 | F24: 25.168 | G24: 145 | H24: 0.044 | I24: 1.300 | J24: 20.000 | K24: 0.012 | L24: 125.720 | M24: 116.200 | N24: 31.000 | O24: 1.040
B25: ХЛЕБ БЕЛЫЙ 1 сорт | C25: 30 | D25: 2.280 | E25: 0.240 | F25: 14.760 | G25: 71 | H25: 0.033 | K25: 0.330 | L25: 6.000 | M25: 19.500 | N25: 4.200 | O25: 0.330
B26: ХЛЕБ РЖАНО-ПШЕНИЧНЫЙ | C26: 20 | D26: 1.000 | E26: 0.200 | F26: 9.000 | G26: 44 | H26: 0.014 | K26: 0.108 | L26: 2.760 | M26: 12.720 | N26: 3.000 | O26: 0.372
B27: Итого: | D27: 20.552 | E27: 18.740 | F27: 80.248 | G27: 562 | H27: 0.331 | I27: 33.325 | J27: =SUM(J21:J26) -> 48.500 | K27: 2.684 | L27: 180.215 | M27: 364.260 | N27: 94.378 | O27: 4.302
B28: 1-ая неделя СРЕДА
A29: 338/2015, ДеЛи | B29: ФРУКТЫ | C29: 120 | D29: 0.480 | E29: 0.480 | F29: 8.820 | G29: 56 | H29: 0.036 | I29: 12.000 | K29: 0.240 | L29: 19.200 | M29: 13.200 | N29: 10.800 | O29: 2.640
A30: №52/2015г,Дели | B30: САЛАТ из моркови | C30: 80 | D30: 0.688 | E30: 4.176 | F30: 5.930 | G30: 65 | H30: 0.029 | I30: 2.430 | K30: 2.834 | L30: 13.302 | M30: 26.850 | N30: 18.468 | O30: 0.358
A31: №256 | B31: гуляш из говядины | C31: 50\50 | D31: 9.750 | E31: 11.500 | F31: 7.985 | G31: 156 | H31: 0.061 | I31: 2.440 | K31: 2.598 | L31: 14.890 | M31: 159.066 | N31: 20.920 | O31: 2.340
A32: № 332,516 сбор.2004г | B32: МАКАРОНЫЕ ИЗДЕЛИЯ ОТВАРНЫЕ С МАСЛОМ | C32: 150 | D32: 5.100 | E32: 4.468 | F32: 28.500 | G32: 187 | H32: 0.087 | J32: 21.000 | K32: 0.816 | L32: 16.457 | M32: 47.009 | N32: 8.479 | O32: 0.869
A33: № 686 2004 г, №377 Дели 2015 | B33: ЧАЙ с сахаром с курагой | C33: 200/15/7 | D33: 0.521 | E33: 0.005 | F33: 21.725 | G33: 88 | L33: 0.450 | O33: 0.045
B34: ХЛЕБ БЕЛЫЙ 1 сорт | C34: 30 | D34: 2.280 | E34: 0.240 | F34: 14.760 | G34: 71 | H34: 0.033 | K34: 0.330 | L34: 6.000 | M34: 19.500 | N34: 4.200 | O34: 0.330
B35: ХЛЕБ РЖАНО-ПШЕНИЧНЫЙ | C35: 20 | D35: 1.000 | E35: 0.200 | F35: 9.000 | G35: 44 | H35: 0.014 | K35: 0.108 | L35: 2.760 | M35: 12.720 | N35: 3.000 | O35: 0.372
B36: Итого: | D36: 19.339 | E36: 20.589 | F36: 87.900 | G36: 611 | H36: 0.224 | I36: 4.870 | J36: =SUM(J29:J35) -> 21.000 | K36: 6.686 | L36: 53.859 | M36: 265.145 | N36: 55.067 | O36: 4.314
B37: 1-ая неделя ЧЕТВЕРГ
A38: 338/2015, ДеЛи | B38: ФРУКТЫ | C38: 120 | D38: 0.480 | E38: 0.480 | F38: 8.200 | G38: 56 | H38: 0.036 | I38: 12.000 | K38: 0.240 | L38: 19.200 | M38: 13.200 | N38: 10.800 | O38: 2.640
A39: №56 | B39: САЛАТ ОВОЩНОЙ | C39: 60 | D39: 0.399 | E39: 3.653 | F39: 1.083 | G39: 39 | H39: 0.017 | K39: 1.641 | L39: 9.690 | M39: 17.172 | N39: 7.980 | O39: 0.285
A40: ТТК | B40: Биточки рыбные | C40: 80 | D40: 9.800 | E40: 5.400 | F40: 3.682 | G40: 104 | H40: 0.017 | I40: 5.000 | J40: 25.000 | K40: 0.946 | L40: 8.242 | M40: 21.297 | N40: 1.124 | O40: 0.303
A41: 520/Сб.шк | B41: ПЮРЕ КАРТОФЕЛЬНОЕ | C41: 150/5 | D41: 3.090 | E41: 8.982 | F41: 22.067 | G41: 179 | H41: 0.164 | I41: 5.000 | J41: 45.500 | K41: 0.231 | L41: 47.808 | M41: 98.836 | N41: 32.978 | O41: 1.241
A42: 685/2004Сбшк | B42: кофЕЙНЫЙ НАПИТОК С МОЛОКОМ | C42: 200 | D42: 3.300 | E42: 1.510 | F42: 29.060 | G42: 152 | H42: 0.115 | I42: 5.000 | J42: 20.250 | K42: 0.750 | L42: 170.600 | M42: 130.000 | N42: 34.000 | O42: 1.060
B43: ХЛЕБ БЕЛЫЙ 1 сорт | C43: 30 | D43: 2.280 | E43: 0.240 | F43: 14.760 | G43: 71 | H43: 0.033 | I43: 0 | K43: 0.330 | L43: 6.000 | M43: 19.500 | N43: 4.200 | O43: 0.330
B44: ХЛЕБ РЖАНО-ПШЕНИЧНЫЙ | C44: 20 | D44: 1.000 | E44: 0.200 | F44: 9.000 | G44: 44 | H44: 0.014 | I44: 0.000 | K44: 0.108 | L44: 2.760 | M44: 12.720 | N44: 3.000 | O44: 0.372
B45: Итого: | D45: 19.869 | E45: 19.285 | F45: 79.652 | G45: 589 | H45: 0.360 | I45: 25.000 | J45: 90.750 | K45: 4.006 | L45: 245.100 | M45: 299.524 | N45: 83.282 | O45: 3.591
B46: 1-ая неделя ПЯТНИЦА
B47: овощи натуральные свежие | C47: 60 | D47: 0.660 | E47: 0.120 | F47: 2.280 | G47: 14 | H47: 0.036 | I47: 15.000 | K47: 0.420 | L47: 8.400 | M47: 15.600 | N47: 12.000 | O47: 0.540
A48: 511/2004 Сб.шк | B48: плов с говядиной | C48: 50/150 | D48: 15.900 | E48: 18.900 | F48: 40.095 | G48: 422 | H48: 0.106 | I48: 3.510 | K48: 3.931 | L48: 22.131 | M48: 240.284 | N48: 51.154 | O48: 2.932
A49: №378 | B49: чай с лимоном | C49: 200\15\7 | D49: 0.084 | E49: 0.012 | F49: 15.185 | G49: 62 | H49: 0.003 | I49: 2.800 | K49: 0.014 | L49: 3.250 | M49: 1.540 | N49: 0.840 | O49: 0.087
B50: ХЛЕБ БЕЛЫЙ 1 сорт | C50: 30 | D50: 2.280 | E50: 0.240 | F50: 14.760 | G50: 71 | H50: 0.033 | K50: 0.330 | L50: 6.000 | M50: 19.500 | N50: 4.200 | O50: 0.330
B51: ХЛЕБ РЖАНО-ПШЕНИЧНЫЙ | C51: 20 | D51: 1.000 | E51: 0.200 | F51: 9.000 | G51: 44 | H51: 0.014 | K51: 0.108 | L51: 2.760 | M51: 12.720 | N51: 3.000 | O51: 0.372
B52: Итого: | D52: =SUM(D47:D51) -> 19.924 | E52: 19.472 | F52: 81.320 | G52: 613.000 | H52: 0.192 | I52: 21.310 | K52: =SUM(K47:K51) -> 4.803 | L52: =SUM(L47:L51) -> 42.541 | M52: =SUM(M47:M51) -> 289.644 | N52: =SUM(N47:N51) -> 71.194 | O52: =SUM(O47:O51) -> 4.261
B53: 1-ая неделя СУББОТА
A54: 338/2015, ДеЛи | B54: ФРУКТЫ | C54: 120 | D54: 0.480 | E54: 0.480 | F54: 8.820 | G54: 56 | H54: 0.036 | I54: 12.000 | K54: 0.240 | L54: 19.200 | M54: 13.200 | N54: 10.800 | O54: 2.640
A55: №47/2015г,Дели | B55: салат из св овощей | C55: 60 | D55: 0.627 | E55: 3.710 | F55: 2.166 | G55: 46 | H55: 0.034 | I55: 14.250 | K55: 1.983 | L55: 7.980 | M55: 14.892 | N55: 11.400 | O55: 0.513
A56: №392/2015, Дели | B56: ПЕЛЬМЕНИ МЯСНЫЕ ОТВАРНЫЕ | C56: 190/5 | D56: 11.940 | E56: 13.375 | F56: 27.340 | G56: 279 | H56: 0.168 | I56: 2.629 | J56: 34.043 | K56: 1.354 | L56: 47.058 | M56: 212.108 | N56: 29.119 | O56: 2.536
A57: 692/2004 | B57: КАКАО С МОЛОКОМ | C57: 200 | D57: 3.600 | E57: 2.100 | F57: 25.168 | G57: 125 | H57: 0.044 | I57: 1.300 | J57: 20.000 | K57: 0.012 | L57: 125.720 | M57: 116.200 | N57: 31.000 | O57: 1.040
B58: ХЛЕБ БЕЛЫЙ 1 сорт | C58: 30 | D58: 2.280 | E58: 0.240 | F58: 14.760 | G58: 71 | H58: 0.033 | K58: 0.330 | L58: 6.000 | M58: 19.500 | N58: 4.200 | O58: 0.330
B59: ХЛЕБ РЖАНО-ПШЕНИЧНЫЙ | C59: 20 | D59: 1.000 | E59: 0.200 | F59: 9.000 | G59: 44 | H59: 0.014 | K59: 0.108 | L59: 2.760 | M59: 12.720 | N59: 3.000 | O59: 0.372
B60: Итого: | D60: 19.447 | E60: 19.600 | F60: 78.434 | G60: 565.000 | H60: 0.324 | I60: 28.179 | J60: =SUM(J54:J59) -> 54.043 | K60: 4.027 | L60: 208.718 | M60: 388.620 | N60: 89.519 | O60: 7.431

Sheet 2нед
A3: № Сборника рецептур | B3: Наименование блюд | C3: Выход | D3: Белки, г | E3: Жиры, г | F3: Углеводы, г | G3: Калорийность, ккал | H3: Витамин B1, мг | I3: Витамин С, мг | J3: Витамин А, мг | K3: Витамин Е, мг | L3: Ca, мг | M3: P, мг | N3: Mg, мг | O3: Fe, мг
B4: 2-ая неделя ПОНЕДЕЛЬНИК
A5: 338/2015, ДеЛи | B5: ФРУКТЫ | C5: 120 | D5: 0.480 | E5: 0.400 | F5: 7.350 | G5: 47 | H5: 0.030 | I5: 10.000 | K5: 0.200 | L5: 16.000 | M5: 11.000 | N5: 9.000 | O5: 2.200
A6: 43/2004Сбшк | B6: овощи натуральные свежие | C6: 80 | D6: 0.880 | E6: 1.160 | F6: 3.040 | G6: 19 | H6: 0.036 | I6: 15.000 | K6: 0.420 | L6: 8.400 | M6: 15.600 | N6: 12.000 | O6: 0.540
A7: №280 | B7: котлеты | C7: 80 | D7: 7.800 | E7: 9.980 | F7: 5.122 | G7: 115 | H7: 0.057 | I7: 1.604 | J7: 12.880 | K7: 1.261 | L7: 15.062 | M7: 117.121 | N7: 15.147 | O7: 1.594
A8: №303 | B8: макаронные изделия отварные с маслом | C8: 150/5 | D8: 5.140 | E8: 8.093 | F8: 28.540 | G8: 220 | H8: 0.087 | J8: 21.000 | K8: 0.816 | L8: 16.457 | M8: 47.009 | N8: 8.479 | O8: 0.869
A9: 685/2004Сбшк | B9: кофейный напиток с молоком | C9: 200 | D9: 3.300 | E9: 1.510 | F9: 29.060 | G9: 125 | H9: 0.115 | I9: 1.300 | J9: 20.250 | K9: 0.750 | L9: 170.600 | M9: 130.000 | N9: 34.000 | O9: 1.060
B10: ХЛЕБ БЕЛЫЙ 1 сорт | C10: 30 | D10: 2.280 | E10: 0.240 | F10: 14.760 | G10: 71 | H10: 0.033 | K10: 0.330 | L10: 6.000 | M10: 19.500 | N10: 4.200 | O10: 0.330
B11: ХЛЕБ РЖАНО-ПШЕНИЧНЫЙ | C11: 20 | D11: 1.000 | E11: 0.200 | F11: 9.000 | G11: 44 | H11: 0.014 | K11: 0.108 | L11: 2.760 | M11: 12.720 | N11: 3.000 | O11: 0.372
B12: Итого: | D12: 20.400 | E12: 20.183 | F12: 87.200 | G12: 594 | H12: 0.343 | I12: 17.904 | J12: 74.130 | K12: 3.735 | L12: 220.479 | M12: 343.450 | N12: 76.826 | O12: 4.775
B13: 2-ая неделя ВТОРНИК
A14: 338/2015, ДеЛи | B14: ФРУКТЫ | C14: 120 | D14: 0.480 | E14: 0.400 | F14: ,7,350 | G14: 47 | H14: 0.030 | I14: 10.000 | K14: 0.200 | L14: 16.000 | M14: 11.000 | N14: 9.000 | O14: 2.200
A15: 291/2015Дели | B15: овощи натуральные свежие | C15: 80 | D15: 0.420 | E15: 0.080 | F15: ,1,140 | G15: 7 | H15: 0.018 | I15: 4.200 | K15: 0.060 | L15: 10.200 | M15: 18.000 | N15: 8.400 | O15: 0.300
B16: пюре картофельное | C16: 150 | D16: 3.090 | E16: 4.657 | F16: 22.027 | G16: 146 | H16: 0.163 | I16: 25.943 | J16: 25.500 | K16: 0.181 | L16: 46.606 | M16: 97.336 | N16: 32.978 | O16: 1.231
B17: ежики мясные с рисом в соусе томатном | C17: 60/40 | D17: 9.587 | E17: 12.600 | F17: 9.451 | G17: 179 | H17: 0.049 | I17: 2.517 | K17: 2.096 | L17: 12.795 | M17: 107.490 | N17: 18.180 | O17: 1.531
A18: 686/2004, Сб.шк | B18: какао с молоком | C18: 200 | D18: 3.600 | E18: 2.100 | F18: 25.168 | G18: 125 | H18: 0.044 | I18: 1.300 | J18: 20 | K18: 0.012 | L18: 125.720 | M18: 116.200 | N18: 31.000 | O18: 1.040
B19: ХЛЕБ БЕЛЫЙ 1 сорт | C19: 30 | D19: 2.280 | E19: 0.240 | F19: 14.760 | G19: 71 | H19: 0.033 | K19: 0.330 | L19: 6.000 | M19: 19.500 | N19: 4.200 | O19: 0.330
B20: ХЛЕБ РЖАНО-ПШЕНИЧНЫЙ | C20: 20 | D20: 1.000 | E20: 0.200 | F20: 9.000 | G20: 44 | H20: 0.014 | K20: 0.108 | L20: 2.760 | M20: 12.720 | N20: 3.000 | O20: 0.372
B21: Итого: | D21: 19.977 | E21: 19.877 | F21: 81.546 | G21: 572.000 | H21: 0.321 | I21: 33.960 | J21: 45.500 | K21: 2.787 | L21: 204.081 | M21: 371.246 | N21: 97.758 | O21: 4.804
B22: 2-ая неделя СРЕДА
A23: 338/2015Дели | B23: ФРУКТЫ | C23: 120 | D23: 0.480 | E23: 0.400 | F23: 7.350 | G23: 47 | H23: 0.030 | I23: 10.000 | K23: 0.200 | L23: 16.000 | M23: 11.000 | N23: 9.000 | O23: 2.200
A24: №47/2015г,Дели | B24: САЛАТ ИЗ белокочанной КАПУСТЫ | C24: 60 | D24: 0.931 | E24: 3.051 | F24: 5.645 | G24: 54 | H24: 0.018 | I24: 21.603 | K24: 1.391 | L24: 25.537 | M24: 18.260 | N24: 9.920 | O24: 0.344
A25: №234/2015 Дели | B25: гуляш из куриных грудок | C25: 1г | D25: 8.958 | E25: 8.320 | F25: 3.396 | G25: 171 | H25: 0.078 | I25: 3.970 | J25: 28.400 | K25: 3.197 | L25: 17.166 | M25: 122.746 | N25: 18.274 | O25: 1.137
A26: 312/2015Дели | B26: каша гречневая рассыпчатая | C26: 150 | D26: 6.622 | E26: 9.024 | F26: 33.000 | G26: 170 | H26: 0.291 | J26: 21.000 | K26: 0.468 | L26: 20.632 | M26: 177.928 | N26: 104.220 | O26: 3.448
A27: 692/2004 | B27: чай с сахаром | C27: 13 | D27: 0.021 | E27: 0.005 | F27: 14.975 | G27: 60 | L27: 0.450 | O27: 0.045
B28: ХЛЕБ БЕЛЫЙ 1 сорт | C28: 30 | D28: 2.280 | E28: 0.240 | F28: 14.760 | G28: 71 | H28: 0.033 | K28: 0.330 | L28: 6.000 | M28: 19.500 | N28: 4.200 | O28: 0.330
B29: ХЛЕБ РЖАНО-ПШЕНИЧНЫЙ | C29: 20 | D29: 1.000 | E29: 0.200 | F29: 9.000 | G29: 44 | H29: 0.014 | K29: 0.108 | L29: 2.760 | M29: 12.720 | N29: 3.000 | O29: 0.372
B30: Итого: | D30: =SUM(D23:D29) -> 20.292 | E30: 21.200 | F30: =SUM(F23:F29) -> 88.126 | G30: 617.000 | H30: 0.464 | I30: 35.573 | J30: 49.400 | K30: 5.694 | L30: 88.545 | M30: 362.154 | N30: 148.614 | O30: 7.876
B31: 2-ая неделя ЧЕТВЕРГ
A32: №62 | B32: САЛАТ ИЗ МОРКОВИ С САХАРОМ | C32: 80 | D32: 0.688 | E32: 4.176 | F32: 5.930 | G32: 49 | H32: 0.029 | I32: 2.430 | K32: 2.834 | L32: 13.302 | M32: 26.850 | N32: 18.468 | O32: 0.358
A33: №260/2015г,Дели | B33: грудка куриная в сливочном соусе | C33: 60/30 | D33: 11.650 | E33: 10.756 | F33: 1.632 | G33: 154 | H33: 0.068 | I33: 2.326 | J33: 68.677 | K33: 3.956 | L33: 25.186 | M33: 123.198 | N33: 15.716 | O33: 1.009
A34: № 332,516 сбор.2004г | B34: рис отварной | C34: 150 | D34: 3.834 | E34: 5.420 | F34: 31.600 | G34: 210 | H34: 0.044 | J34: 27.000 | K34: 0.284 | L34: 11.460 | M34: 84.150 | N34: 27.300 | O34: 0.597
A35: 693/2004, Сб.шк | B35: чай с сахаром с курагой | C35: 200/15/10 | D35: 0.521 | E35: 0.005 | F35: 21.725 | G35: 88 | H35: 0.150 | J35: 0.090 | K35: 1.500 | L35: 100.450 | M35: 80.000 | N35: 40.000 | O35: 1.845
B36: ХЛЕБ БЕЛЫЙ 1 сорт | C36: 30 | D36: 2.280 | E36: 0.240 | F36: 14.760 | G36: 71 | H36: 0.033 | K36: 0.330 | L36: 6.000 | M36: 19.500 | N36: 4.200 | O36: 0.330
B37: ХЛЕБ РЖАНО-ПШЕНИЧНЫЙ | C37: 20 | D37: 1.000 | E37: 0.200 | F37: 9.000 | G37: 44 | H37: 0.014 | K37: 0.108 | L37: 2.760 | M37: 12.720 | N37: 3.000 | O37: 0.372
B38: Итого: | D38: =SUM(D32:D37) -> 19.973 | E38: 20.797 | F38: 84.647 | G38: 616.000 | H38: 0.338 | I38: 4.756 | J38: 95.767 | K38: 9.012 | L38: 159.158 | M38: 346.418 | N38: 108.684 | O38: 4.511
B39: 2-ая неделя ПЯТНИЦА
A40: таб24/1996Сб | B40: СВЕКЛА ОТВАРНАЯ С МАСЛОМ | C40: 80 | D40: 0.900 | E40: 3.650 | F40: 15.440 | G40: 55 | H40: 0.011 | I40: 5.700 | K40: 1.641 | L40: 21.090 | M40: 24.582 | N40: 12.540 | O40: 0.798
A41: №290 | B41: мясо по милански | C41: 180 | D41: 15.990 | E41: 16.640 | F41: 29.500 | G41: 384 | H41: 0.164 | I41: 13.988 | J41: 146.303 | K41: 1.811 | L41: 153.502 | M41: 310.067 | N41: 43.762 | O41: 3.460
A42: 685/2004Сбшк | B42: ЧАЙ С САХАРОМ с лимоном | C42: 200/15/7 | D42: 0.084 | E42: 0.012 | F42: 15.185 | G42: 62 | H42: 0.003 | I42: 2.800 | K42: 0.014 | L42: 3.250 | M42: 1.540 | N42: 0.840 | O42: 0.087
B43: ХЛЕБ БЕЛЫЙ 1 сорт | C43: 30 | D43: 2.280 | E43: 0.240 | F43: 14.760 | G43: 71 | H43: 0.033 | K43: 0.330 | L43: 6.000 | M43: 19.500 | N43: 4.200 | O43: 0.330
B44: ХЛЕБ РЖАНО-ПШЕНИЧНЫЙ | C44: 20 | D44: 1.000 | E44: 0.200 | F44: 9.000 | G44: 44 | H44: 0.014 | K44: 0.108 | L44: 2.760 | M44: 12.720 | N44: 3.000 | O44: 0.372
B45: Итого: | D45: =SUM(D40:D44) -> 20.254 | E45: 20.742 | F45: 83.885 | G45: 616.000 | H45: 0.225 | I45: 22.488 | J45: 146.303 | K45: 3.904 | L45: 186.602 | M45: 368.409 | N45: 64.342 | O45: 5.047
B46: 2-ая неделя СУББОТА
A47: 338/2015Дели | B47: ФРУКТЫ | C47: 120 | D47: 0.480 | E47: 0.400 | F47: 7.350 | G47: 47 | H47: 0.030 | I47: 10.000 | K47: 0.200 | L47: 16.000 | M47: 11.000 | N47: 9.000 | O47: 2.200
A48: №56 | B48: гуляш | C48: 1 | D48: 9.750 | E48: 11.500 | F48: 7.985 | G48: 156 | H48: 0.061 | I48: 2.440 | K48: 2.598 | L48: 14.890 | M48: 159,0,66 | N48: 20.920 | O48: 2.340
A49: №392/2015, Дели | B49: макаронные изделия отварные | C49: 150 | D49: 5.100 | E49: 4.468 | F49: 28.500 | G49: 187 | H49: 0.087 | J49: 21.000 | K49: 0.816 | L49: 16.457 | M49: 47.009 | N49: 8.479 | O49: 0.869
A50: № 686 2004 г, №377 Дели 2015 | B50: кофейный напиток с молоком | C50: 200 | D50: 3.300 | E50: 1.510 | F50: 29.060 | G50: 152 | H50: 0.115 | I50: 1.300 | J50: 20.25 | K50: 0.750 | L50: 170.600 | M50: 130.000 | N50: 34.000 | O50: 1.060
B51: ХЛЕБ БЕЛЫЙ 1 сорт | C51: 30 | D51: 2.280 | E51: 0.240 | F51: 14.760 | G51: 71 | H51: 0.033 | K51: 0.330 | L51: 6.000 | M51: 19.500 | N51: 4.200 | O51: 0.330
B52: ХЛЕБ РЖАНО-ПШЕНИЧНЫЙ | C52: 20 | D52: 1.000 | E52: 0.200 | F52: 9.000 | G52: 44 | H52: 0.014 | K52: 0.108 | L52: 2.760 | M52: 12.720 | N52: 3.000 | O52: 0.372
B53: Итого: | D53: =SUM(D47:D52) -> 21.910 | F53: =SUM(F47:F52) -> 96.655 | G53: 657.000 | H53: 0.340 | I53: 13.740 | J53: 41.250 | K53: 4.802 | L53: 226.707 | M53: 220.229 | N53: 79.599 | O53: 7.171
